bitfinex/quotes_BTCUSD_20220303
["timestamp","ask_amount","ask_price","bid_price","bid_amount"]
[1646333395976,0.059029,42388.0,42387.0,0.00025565]
[1646333396178,0.106229,42388.0,42387.0,0.00025565]
[1646333396377,0.0472,42388.0,42387.0,0.00025565]
[1646333397223,0.0472,42388.0,42387.0,0.20881666]
[1646333398224,0.0472,42388.0,42387.0,0.00125565]
[1646333398726,0.95,42387.0,42376.0,0.01179]
[1646333398930,0.0472,42386.0,42376.0,0.01179]
[1646333399125,0.47536163,42385.0,42376.0,0.01179]
[1646333399325,0.0472,42384.0,42376.0,0.01179]
[1646333399725,0.0472,42384.0,42382.0,0.10151481]
[1646333400329,0.003,42384.0,42383.0,0.39716305]
[1646333400600,0.003,42384.0,42383.0,0.48247184]
[1646333400799,0.00013193,42385.0,42384.0,0.95]
[1646333401000,0.00026386,42385.0,42384.0,0.95]
[1646333401200,0.00039579,42385.0,42384.0,0.95]
[1646333401599,0.00026386,42385.0,42384.0,0.95]
[1646333401799,0.05,42399.0,42384.0,0.95]
[1646333402000,0.05,42399.0,42391.0,0.11581112]
[1646333402199,0.3,42404.0,42384.0,0.95]
[1646333402398,0.00013193,42387.0,42384.0,0.95]
[1646333402602,0.00039579,42387.0,42384.0,0.95]
[1646333403102,0.00026386,42387.0,42385.0,0.0590106]
[1646333403299,0.05,42399.0,42386.0,0.18198825]
[1646333403703,0.02356,42401.0,42386.0,0.18198825]
[1646333403899,0.00012863,42388.0,42387.0,0.11022383]
[1646333404100,0.00038589,42388.0,42387.0,0.11022383]
[1646333404525,0.00025726,42388.0,42387.0,0.11022383]
[1646333404727,0.00051444,42394.0,42387.0,0.11022383]
[1646333404926,0.141602,42401.0,42387.0,0.17680108]
[1646333405128,0.118042,42401.0,42395.0,0.18084951]
[1646333405325,0.00012863,42390.0,42387.0,0.17680108]
[1646333405525,0.00038589,42390.0,42387.0,0.11022383]
[1646333406025,0.00025726,42390.0,42387.0,0.11022383]
[1646333406225,0.3,42400.0,42387.0,0.11022383]
[1646333406429,0.141602,42401.0,42385.0,0.24592246]
[1646333406627,0.118042,42401.0,42389.0,0.11144322]
[1646333406827,0.059016,42400.0,42389.0,0.11144322]
[1646333407027,0.118042,42401.0,42389.0,0.11144322]
[1646333407028,0.00018626,42396.0,42389.0,0.11144322]
[1646333407330,0.00027939,42396.0,42389.0,0.11144322]
[1646333407730,0.00018626,42396.0,42390.0,0.16143653]
[1646333407984,0.084012,42403.0,42394.0,0.16450282]
[1646333408182,0.084012,42403.0,42397.0,0.21235448]
[1646333408383,0.13573827,42399.0,42397.0,0.21235448]
[1646333408581,0.13573827,42398.0,42397.0,0.21235448]
[1646333408785,0.13573827,42398.0,42394.0,0.16450282]
[1646333408984,0.00144621,42401.0,42396.0,0.08729726]
[1646333409184,0.00048207,42401.0,42396.0,0.08729726]
[1646333409383,0.075,42408.0,42396.0,0.08729726]
[1646333409883,0.00012053,42401.0,42396.0,0.08729726]
[1646333410083,0.00024106,42401.0,42397.0,0.362352]
[1646333410288,0.00036159,42401.0,42399.0,0.362352]
[1646333410484,0.00024106,42401.0,42399.0,0.362352]
[1646333410684,0.00012053,42401.0,42399.0,0.357352]
[1646333410888,0.05,42408.0,42399.0,0.357352]
[1646333411083,0.00055584,42410.0,42400.0,0.17593327]
[1646333411484,0.00027984,42402.0,42401.0,0.361919]
[1646333411727,0.00041976,42402.0,42401.0,0.361919]
[1646333411927,0.00041976,42402.0,42400.0,0.17593327]
[1646333412127,0.00027984,42402.0,42400.0,0.17593327]
[1646333412329,0.001,42402.0,42401.0,0.361919]
[1646333412530,0.001,42402.0,42400.0,0.17593327]
[1646333412728,0.001,42402.0,42401.0,0.361919]
[1646333412935,0.001,42402.0,42400.0,0.19178325]
[1646333413628,0.00027984,42403.0,42400.0,0.19178325]
[1646333413829,0.005153,42407.0,42402.0,0.1939581]
[1646333414029,0.005153,42407.0,42396.0,0.08729726]
[1646333414228,0.00055584,42410.0,42396.0,0.08729726]
[1646333414430,0.001,42407.0,42397.0,0.004]
[1646333414631,0.00011057,42404.0,42398.0,0.361919]
[1646333414829,0.00011057,42404.0,42399.0,0.361919]
[1646333414830,0.00033171,42404.0,42399.0,0.361919]
[1646333415229,0.00022114,42404.0,42399.0,0.37859175]
[1646333415493,0.4,42417.0,42399.0,0.37859175]
[1646333415494,0.05111168,42419.0,42403.0,0.95]
[1646333415682,0.01332067,42430.0,42423.0,0.10498061]
[1646333415882,0.01332067,42430.0,42410.0,0.01402654]
[1646333415883,0.001,42430.0,42410.0,0.01402654]
[1646333416182,0.001,42430.0,42417.0,0.21714115]
[1646333416382,0.001,42430.0,42410.0,0.43476453]
[1646333416383,0.064133,42426.0,42418.0,0.002]
[1646333416583,0.005153,42426.0,42418.0,0.002]
[1646333416786,0.001,42430.0,42418.0,0.002]
[1646333417683,0.11896,42430.0,42417.0,0.3]
[1646333417883,0.11896,42430.0,42416.0,0.1982906]
[1646333418185,0.11896,42430.0,42417.0,0.3]
[1646333418582,0.11896,42430.0,42421.0,0.21103213]
[1646333418882,0.11896,42430.0,42417.0,0.0866363]
[1646333419083,0.11896,42430.0,42413.0,0.3]
[1646333419334,0.05914002,42424.0,42412.0,0.003]
[1646333419536,0.05929704,42424.0,42412.0,0.003]
[1646333419734,0.05945406,42424.0,42416.0,0.21781242]
[1646333419935,0.05929704,42424.0,42416.0,0.21781242]
[1646333420135,0.05929704,42424.0,42410.0,0.1224]
[1646333420136,0.05914002,42424.0,42410.0,0.1224]
[1646333420341,0.058988,42420.0,42410.0,0.1224]
[1646333420536,0.058988,42420.0,42411.0,0.004]
[1646333420537,0.005153,42419.0,42411.0,0.004]
[1646333420738,0.058988,42420.0,42411.0,0.004]
[1646333420739,0.005153,42418.0,42411.0,0.004]
[1646333420935,0.005153,42419.0,42411.0,0.004]
[1646333421235,0.005153,42419.0,42411.0,0.17118903]
[1646333421436,0.058988,42420.0,42411.0,0.17118903]
[1646333421738,0.005153,42421.0,42416.0,0.10005633]
[1646333422537,0.00531002,42421.0,42416.0,0.10005633]
[1646333422737,0.00562406,42421.0,42416.0,0.10005633]
[1646333422976,0.00562406,42421.0,42411.0,0.17018903]
[1646333422977,0.00047106,42421.0,42411.0,0.17018903]
[1646333423178,0.00031404,42421.0,42411.0,0.17018903]
[1646333423480,0.058986,42421.0,42411.0,0.17018903]
[1646333423678,0.005153,42420.0,42411.0,0.16718903]
[1646333423881,0.058986,42421.0,42411.0,0.16718903]
[1646333424077,0.0002407,42418.0,42411.0,0.16718903]
[1646333424278,0.00036105,42418.0,42411.0,0.16718903]
[1646333424479,0.058991,42417.0,42411.0,0.16718903]
[1646333424878,0.00012035,42418.0,42411.0,0.16718903]
[1646333425079,0.10802932,42424.0,42411.0,0.16718903]
[1646333425080,0.005153,42423.0,42411.0,0.16718903]
[1646333425280,0.083988,42424.0,42411.0,0.16718903]
[1646333425480,0.00012035,42416.0,42411.0,0.16718903]
[1646333425678,0.00036105,42416.0,42411.0,0.16718903]
[1646333426185,0.0002407,42416.0,42413.0,0.05630738]
[1646333426380,0.026,42430.0,42413.0,0.05630738]
[1646333426578,0.026,42430.0,42418.0,0.08499877]
[1646333427036,0.00037415,42423.0,42418.0,0.08499877]
[1646333427242,0.00037415,42423.0,42414.0,0.01247844]
[1646333427243,9.355e-05,42417.0,42414.0,0.01247844]
[1646333427437,9.355e-05,42417.0,42415.0,0.361919]
[1646333427636,9.355e-05,42417.0,42414.0,0.01247844]
[1646333427637,9.355e-05,42417.0,42416.0,0.3]
[1646333427837,0.059973,42430.0,42427.0,0.06745815]
[1646333428036,0.005153,42429.0,42427.0,0.06745815]
[1646333428241,0.123115,42429.0,42427.0,0.06745815]
[1646333428437,0.15,42428.0,42427.0,0.06745815]
[1646333428637,0.305153,42428.0,42427.0,0.06745815]
[1646333428841,0.405153,42428.0,42427.0,0.06745815]
[1646333429038,0.005153,42428.0,42427.0,0.06745815]
[1646333431179,0.001,42430.0,42427.0,0.06745815]
[1646333431381,0.001,42430.0,42428.0,0.361919]
[1646333431581,0.001,42430.0,42427.0,0.06745815]
[1646333431778,0.00131402,42430.0,42427.0,0.06745815]
[1646333431981,0.00147103,42430.0,42427.0,0.06745815]
[1646333432180,0.00115701,42430.0,42427.0,0.06745815]
[1646333432478,0.001,42430.0,42428.0,0.16194062]
[1646333432678,0.001,42430.0,42427.0,0.07345815]
[1646333433280,0.13573827,42428.0,42427.0,0.07345815]
[1646333433479,0.14089127,42428.0,42427.0,0.07345815]
[1646333433680,0.001,42430.0,42427.0,0.06745815]
[1646333433881,0.005153,42429.0,42427.0,0.06745815]
[1646333434328,0.005153,42428.0,42427.0,0.06745815]
[1646333434527,0.005153,42428.0,42427.0,0.07045815]
[1646333435828,0.005153,42428.0,42427.0,0.06745815]
[1646333436227,0.005153,42428.0,42427.0,0.26286037]
[1646333436828,0.005153,42428.0,42427.0,0.06745815]
[1646333437128,0.00112139,42430.0,42427.0,0.06745815]
[1646333437329,0.001,42430.0,42427.0,0.06745815]
[1646333437732,0.00112139,42430.0,42427.0,0.06745815]
[1646333437979,0.00136417,42430.0,42428.0,0.11616988]
[1646333438381,0.00124278,42430.0,42428.0,0.11616988]
[1646333438578,0.00112139,42430.0,42428.0,0.11616988]
[1646333438778,0.001,42430.0,42428.0,0.11616988]
[1646333438984,0.056964,42435.0,42429.0,0.4]
[1646333439179,0.005153,42430.0,42429.0,0.4]
[1646333439479,0.00018858,42431.0,42429.0,0.4]
[1646333439678,0.00028287,42431.0,42429.0,0.4]
[1646333440078,9.429e-05,42431.0,42429.0,0.3918182]
[1646333440277,0.00037709,42437.0,42430.0,0.17430258]
[1646333440278,0.005153,42437.0,42430.0,0.17430258]
[1646333440879,0.0001298,42432.0,42430.0,0.17430258]
[1646333441081,0.0003894,42432.0,42430.0,0.17430258]
[1646333441486,0.0002596,42432.0,42430.0,0.17430258]
[1646333441744,0.025,42438.0,42430.0,0.17430258]
[1646333441943,0.005153,42437.0,42429.0,0.3918182]
[1646333442345,0.0001298,42433.0,42429.0,0.3918182]
[1646333442549,0.005153,42432.0,42430.0,0.003]
[1646333443547,0.005153,42432.0,42431.0,0.19657624]
[1646333444050,0.005153,42432.0,42431.0,0.36009149]
[1646333444544,0.005153,42432.0,42431.0,0.002]
[1646333445578,0.005153,42432.0,42431.0,0.38226205]
[1646333445776,0.005153,42432.0,42431.0,0.18384669]
[1646333446277,0.05933098,42434.0,42431.0,0.18384669]
[1646333446278,0.00036498,42434.0,42431.0,0.18384669]
[1646333446478,0.00024332,42434.0,42431.0,0.18584669]
[1646333446680,0.025,42438.0,42431.0,0.18584669]
[1646333446681,0.005153,42437.0,42431.0,0.18584669]
[1646333447277,0.00013649,42435.0,42431.0,0.18584669]
[1646333447479,0.00040947,42435.0,42431.0,0.18584669]
[1646333447678,0.00040947,42435.0,42431.0,0.18384669]
[1646333447879,0.00027298,42435.0,42431.0,0.18384669]
[1646333448080,1.351e-05,42435.0,42431.0,0.18384669]
[1646333448280,0.025,42438.0,42429.0,0.3918182]
[1646333448778,0.00027298,42435.0,42429.0,0.3918182]
[1646333448980,0.00040947,42435.0,42429.0,0.3918182]
[1646333449426,0.005153,42434.0,42427.0,0.06745815]
[1646333449627,0.058971,42429.0,42427.0,0.06745815]
[1646333450424,0.058971,42429.0,42427.0,0.22869537]
[1646333451627,0.058967,42434.0,42427.0,0.22869537]
[1646333451828,0.058963,42435.0,42427.0,0.22869537]
[1646333452425,0.005153,42436.0,42434.0,0.21416384]
[1646333452629,0.005153,42436.0,42430.0,0.10508032]
[1646333452827,0.064115,42436.0,42430.0,0.10508032]
[1646333453484,0.064115,42436.0,42431.0,0.16173472]
[1646333454080,0.064115,42436.0,42427.0,0.06725815]
[1646333454280,0.005153,42435.0,42427.0,0.06725815]
[1646333455283,0.005153,42433.0,42427.0,0.06725815]
[1646333455485,0.058962,42436.0,42427.0,0.06725815]
[1646333455684,0.005153,42435.0,42427.0,0.06725815]
[1646333456084,0.058962,42436.0,42427.0,0.06725815]
[1646333456384,0.005153,42435.0,42427.0,0.06725815]
[1646333456590,0.005153,42435.0,42427.0,0.07225815]
[1646333457731,0.005153,42435.0,42427.0,0.06725815]
[1646333458130,0.058962,42436.0,42427.0,0.06725815]
[1646333458330,0.005153,42435.0,42427.0,0.06725815]
[1646333458531,0.058965,42432.0,42430.0,0.18285932]
[1646333458731,0.005153,42431.0,42430.0,0.18285932]
[1646333459333,0.058965,42432.0,42427.0,0.06725815]
[1646333460332,0.005153,42431.0,42428.0,0.17067667]
[1646333460581,0.058965,42432.0,42428.0,0.17067667]
[1646333461282,0.00039024,42437.0,42430.0,0.361919]
[1646333461480,0.00026016,42437.0,42430.0,0.361919]
[1646333461682,0.001,42439.0,42435.0,0.21187513]
[1646333462082,0.001,42439.0,42435.0,0.30089518]
[1646333462285,0.05,42444.0,42437.0,0.95]
[1646333462286,0.00062793,42442.0,42437.0,0.95]
[1646333462484,0.00188379,42442.0,42437.0,0.95]
[1646333462685,0.00188379,42442.0,42438.0,0.21340834]
[1646333462882,0.00125586,42442.0,42438.0,0.21340834]
[1646333463082,0.00062793,42442.0,42438.0,0.21340834]
[1646333463282,0.059945,42446.0,42438.0,0.21340834]
[1646333463484,0.059945,42446.0,42440.0,0.361919]
[1646333463485,0.001,42446.0,42440.0,0.361919]
[1646333463682,0.001,42446.0,42442.0,0.361919]
[1646333464084,0.001,42446.0,42444.0,0.361919]
[1646333464334,0.001,42446.0,42443.0,0.28370774]
[1646333464938,0.001,42446.0,42445.0,0.361919]
[1646333465537,0.00011508,42447.0,42446.0,0.95]
[1646333465737,0.00011508,42447.0,42446.0,1.25]
[1646333465937,0.00011508,42447.0,42446.0,0.95]
[1646333466137,0.05,42453.0,42446.0,0.95]
[1646333466338,0.045,42453.0,42447.0,0.3]
[1646333466538,0.058933,42454.0,42451.0,0.10443841]
[1646333467239,0.058933,42454.0,42447.0,0.06942]
[1646333467443,0.043933,42454.0,42447.0,0.06942]
[1646333467839,0.058937,42450.0,42447.0,0.06942]
[1646333468084,0.058937,42450.0,42441.0,0.1181]
[1646333468284,0.058937,42450.0,42440.0,0.4174764]
[1646333468489,0.058937,42450.0,42442.0,0.003]
[1646333469687,0.058937,42450.0,42440.0,0.3]
[1646333469889,0.058937,42450.0,42445.0,0.20077806]
[1646333470090,0.00015683,42449.0,42440.0,0.3]
[1646333470288,0.00031366,42449.0,42440.0,0.3]
[1646333470589,0.00015683,42449.0,42447.0,0.16801965]
[1646333470788,0.058937,42450.0,42447.0,0.16801965]
[1646333470988,0.005153,42449.0,42447.0,0.16801965]
[1646333471190,0.058937,42450.0,42443.0,0.19739311]
[1646333471489,0.053937,42450.0,42440.0,0.305]
[1646333471732,0.053937,42450.0,42440.0,0.3]
[1646333472536,0.053937,42450.0,42440.0,0.306]
[1646333473135,0.00025112,42449.0,42440.0,0.306]
[1646333473334,0.00037668,42449.0,42447.0,0.15771956]
[1646333473536,0.00037668,42449.0,42440.0,0.306]
[1646333473735,0.00037668,42449.0,42440.0,0.3]
[1646333473736,0.00025112,42449.0,42440.0,0.3]
[1646333474036,0.053937,42450.0,42439.0,2.62273622]
[1646333474435,0.053937,42450.0,42449.0,0.19935179]
[1646333474638,0.00012546,42449.0,42440.0,0.3]
[1646333474838,0.00012546,42449.0,42439.0,2.62273622]
[1646333474839,0.00025092,42449.0,42439.0,2.62273622]
[1646333475037,0.00025092,42449.0,42444.0,0.20750794]
[1646333475489,0.02456358,42455.0,42444.0,0.20750794]
[1646333475490,0.058931,42454.0,42445.0,0.3]
[1646333475690,0.058931,42454.0,42445.0,0.32356]
[1646333475889,0.058931,42454.0,42445.0,0.3]
[1646333476093,0.00012547,42449.0,42444.0,0.32342149]
[1646333476291,0.00037641,42449.0,42444.0,0.32342149]
[1646333476693,0.00025094,42449.0,42442.0,0.361919]
[1646333476893,0.00025094,42449.0,42441.0,0.1159]
[1646333476894,0.117885,42449.0,42441.0,0.1159]
[1646333477096,0.052353,42448.0,42440.0,0.005]
[1646333477693,0.052353,42448.0,42439.0,0.28934629]
[1646333477896,0.0472,42448.0,42439.0,0.28934629]
[1646333478293,0.00022664,42449.0,42439.0,0.11791216]
[1646333478492,0.325395,42455.0,42439.0,0.11791216]
[1646333478693,0.128713,42454.0,42440.0,0.49452873]
[1646333478893,0.005153,42452.0,42440.0,0.49452873]
[1646333479328,0.00022664,42449.0,42446.0,0.10737986]
[1646333479532,0.00033996,42449.0,42446.0,0.10737986]
[1646333479728,0.00033996,42449.0,42447.0,0.20193741]
[1646333479928,0.00022664,42449.0,42447.0,0.20193741]
[1646333480128,0.00045322,42455.0,42447.0,0.20193741]
[1646333480328,0.1839,42459.0,42447.0,0.50193741]
[1646333480531,0.143861,42461.0,42453.0,0.09313828]
[1646333480728,0.00051654,42456.0,42453.0,0.09313828]
[1646333480927,0.00103308,42456.0,42453.0,0.09313828]
[1646333481131,0.005153,42455.0,42453.0,0.09313828]
[1646333481328,0.05996408,42456.0,42453.0,0.09313828]
[1646333481529,0.00051654,42456.0,42454.0,0.3]
[1646333481730,0.005153,42460.0,42454.0,0.17657043]
[1646333482132,0.005153,42460.0,42456.0,0.16595312]
[1646333482331,0.00015326,42457.0,42456.0,0.16595312]
[1646333482530,0.00045978,42457.0,42454.0,0.17957043]
[1646333482729,0.00045978,42457.0,42454.0,0.003]
[1646333482978,0.00030652,42457.0,42454.0,0.003]
[1646333483181,0.058925,42460.0,42454.0,0.003]
[1646333483587,0.058925,42460.0,42458.0,0.17650908]
[1646333483779,0.058925,42460.0,42455.0,0.1819008]
[1646333484004,0.00023256,42458.0,42455.0,0.1819008]
[1646333484284,0.00034884,42458.0,42455.0,0.1819008]
[1646333484480,0.00011628,42458.0,42455.0,0.1819008]
[1646333484680,0.17123915,42464.0,42456.0,0.95]
[1646333484681,0.16765789,42464.0,42456.0,0.95]
[1646333484879,0.005153,42463.0,42462.0,0.19993279]
[1646333485079,0.005153,42463.0,42456.0,0.95]
[1646333485281,0.059924,42464.0,42456.0,0.95]
[1646333485480,0.118844,42464.0,42456.0,0.95]
[1646333485782,0.005153,42463.0,42460.0,0.20790187]
[1646333485982,0.118844,42464.0,42456.0,0.95]
[1646333486184,0.005153,42463.0,42460.0,0.18090932]
[1646333486383,0.118844,42464.0,42460.0,0.18090932]
[1646333486582,0.118844,42464.0,42460.0,0.18390932]
[1646333487035,0.118844,42464.0,42462.0,0.18385776]
[1646333487232,0.005153,42463.0,42460.0,0.003]
[1646333487432,0.118844,42464.0,42460.0,0.11267107]
[1646333487634,0.05992,42464.0,42460.0,0.11267107]
[1646333487833,0.05992,42464.0,42460.0,0.10967107]
[1646333488233,0.005153,42463.0,42462.0,0.18444479]
[1646333488436,0.06023362,42464.0,42460.0,0.30257484]
[1646333488635,0.06039043,42464.0,42460.0,0.11367107]
[1646333489034,0.06023362,42464.0,42460.0,0.11367107]
[1646333489235,0.06007681,42464.0,42460.0,0.11367107]
[1646333489435,0.05992,42464.0,42460.0,0.11367107]
[1646333489835,0.06007681,42464.0,42460.0,0.10967107]
[1646333490036,0.06039043,42464.0,42460.0,0.10967107]
[1646333490482,0.06023362,42464.0,42460.0,0.11267107]
[1646333490679,0.05992,42464.0,42460.0,0.11267107]
[1646333491279,0.06007681,42464.0,42460.0,0.11267107]
[1646333491480,0.058926,42463.0,42460.0,0.11267107]
[1646333491680,0.058926,42463.0,42460.0,0.15792903]
[1646333491879,0.058926,42460.0,42456.0,0.95]
[1646333492487,0.058926,42460.0,42451.0,0.005]
[1646333492681,0.058941,42453.0,42451.0,0.005]
[1646333492880,0.058941,42453.0,42452.0,0.20527093]
[1646333493080,0.058941,42453.0,42451.0,0.005]
[1646333493282,0.117884,42453.0,42451.0,0.005]
[1646333493684,0.058941,42454.0,42451.0,0.005]
[1646333493880,0.058941,42454.0,42446.0,0.361919]
[1646333494082,0.058941,42454.0,42451.0,0.08747064]
[1646333494332,0.058941,42454.0,42452.0,0.361919]
[1646333494732,0.058941,42454.0,42451.0,0.08747064]
[1646333496335,0.058941,42454.0,42446.0,0.35737747]
[1646333496532,0.058941,42454.0,42451.0,0.004]
[1646333496933,0.058941,42454.0,42451.0,0.00262532]
[1646333497434,0.058941,42454.0,42452.0,0.361919]
[1646333497632,0.058941,42454.0,42451.0,0.00262532]
[1646333497831,0.058941,42454.0,42449.0,0.10115471]
[1646333498097,0.117861,42458.0,42449.0,0.10115471]
[1646333498696,0.117861,42458.0,42449.0,0.10615471]
[1646333498899,0.117861,42458.0,42451.0,0.19526622]
[1646333499098,0.058935,42452.0,42451.0,0.19526622]
[1646333499296,0.058935,42452.0,42449.0,0.10615471]
[1646333499498,0.007652,42451.0,42450.0,0.361919]
[1646333499896,0.007652,42451.0,42450.0,0.53130988]
[1646333500299,0.007652,42451.0,42450.0,0.15712516]
[1646333502332,0.007652,42451.0,42450.0,0.68900935]
[1646333502531,0.007652,42451.0,42450.0,0.33109035]
[1646333502733,0.007652,42451.0,42450.0,0.15349116]
[1646333503332,0.007652,42451.0,42450.0,0.51541016]
[1646333503733,0.007652,42451.0,42450.0,0.36438064]
[1646333504136,0.007652,42451.0,42448.0,0.3]
[1646333504334,0.007652,42451.0,42447.0,0.09628596]
[1646333504534,0.007652,42451.0,42444.0,0.1188]
[1646333504535,0.007652,42451.0,42450.0,0.004]
[1646333505334,0.007652,42451.0,42450.0,0.21211043]
[1646333505786,0.007652,42451.0,42450.0,0.20811043]
[1646333506384,0.007652,42451.0,42449.0,0.21784394]
[1646333506583,0.007652,42451.0,42450.0,0.365919]
[1646333507282,0.007652,42451.0,42450.0,0.004]
[1646333507884,0.007652,42451.0,42446.0,0.11936572]
[1646333508083,0.007652,42451.0,42447.0,0.361919]
[1646333508484,0.007652,42451.0,42446.0,0.11936572]
[1646333508683,0.007652,42451.0,42447.0,0.361919]
[1646333508883,0.007652,42451.0,42443.0,0.1216]
[1646333509084,0.007652,42451.0,42449.0,0.21355872]
[1646333509340,0.007652,42451.0,42443.0,0.361919]
[1646333509537,0.007652,42451.0,42447.0,0.361919]
[1646333510338,0.007652,42451.0,42447.0,0.17925632]
[1646333510537,0.007652,42451.0,42442.0,0.1269]
[1646333511140,0.058945,42447.0,42442.0,0.1269]
[1646333511338,0.058945,42447.0,42442.0,0.005]
[1646333511540,0.058945,42447.0,42443.0,0.16990604]
[1646333512540,0.007652,42451.0,42443.0,0.17490604]
[1646333512742,0.007652,42451.0,42443.0,0.005]
[1646333513992,0.007652,42451.0,42442.0,0.31209314]
[1646333514595,0.007652,42451.0,42442.0,0.31809314]
[1646333515493,0.005153,42450.0,42449.0,0.09097794]
[1646333515693,0.007652,42451.0,42449.0,0.09097794]
[1646333515893,0.005153,42450.0,42449.0,0.09097794]
[1646333516096,0.007652,42451.0,42449.0,0.09097794]
[1646333516497,0.005153,42450.0,42447.0,0.16815466]
[1646333516742,0.066595,42451.0,42444.0,0.004]
[1646333517144,0.007652,42451.0,42444.0,0.004]
[1646333517739,0.005153,42450.0,42445.0,0.16131485]
[1646333517941,0.007652,42451.0,42445.0,0.16131485]
[1646333518539,0.005153,42450.0,42446.0,0.15411409]
[1646333518738,0.007652,42451.0,42445.0,0.005]
[1646333519340,0.058945,42449.0,42445.0,0.005]
[1646333519540,0.058945,42449.0,42445.0,0.21509249]
[1646333519844,0.058945,42449.0,42445.0,0.21009249]
[1646333520885,0.007652,42451.0,42445.0,0.21009249]
[1646333521686,0.007652,42451.0,42443.0,0.11083279]
[1646333522086,0.058942,42450.0,42443.0,0.11083279]
[1646333522289,0.058942,42450.0,42440.0,0.46093823]
[1646333522489,0.058942,42450.0,42440.0,0.00512173]
[1646333522989,0.058948,42449.0,42440.0,0.00536519]
[1646333523191,0.005153,42444.0,42440.0,0.00036519]
[1646333523390,0.05895,42445.0,42440.0,0.00024346]
[1646333523590,0.06019622,42442.0,42440.0,0.00012173]
[1646333523791,0.125546,42451.0,42437.0,0.01176]
[1646333523792,0.052353,42441.0,42437.0,0.01176]
[1646333523991,0.052353,42441.0,42440.0,0.00015689]
[1646333523992,0.005153,42441.0,42440.0,0.00015689]
[1646333524236,0.111313,42441.0,42440.0,0.00015689]
[1646333524539,0.111313,42441.0,42440.0,0.00031378]
[1646333524735,0.111313,42441.0,42440.0,0.00047067]
[1646333524935,0.052353,42441.0,42440.0,0.00031378]
[1646333525140,0.052353,42441.0,42440.0,0.11314029]
[1646333525435,0.052353,42441.0,42440.0,0.11308127]
[1646333526139,0.052353,42441.0,42429.0,0.1155]
[1646333526140,0.0472,42441.0,42429.0,0.1155]
[1646333526537,0.058963,42433.0,42429.0,0.1155]
[1646333526736,0.058963,42433.0,42427.0,0.06725815]
[1646333526937,0.058963,42433.0,42432.0,0.18251843]
[1646333527337,0.058963,42433.0,42430.0,0.19616686]
[1646333527741,0.058963,42433.0,42431.0,0.361919]
[1646333528182,0.058963,42433.0,42428.0,0.361919]
[1646333528381,0.058963,42433.0,42428.0,0.52332223]
[1646333528582,0.058963,42433.0,42430.0,0.0001569]
[1646333528983,0.058963,42433.0,42430.0,0.0003138]
[1646333529183,0.058963,42433.0,42430.0,0.0004707]
[1646333529584,0.058963,42433.0,42427.0,0.32914998]
[1646333529984,0.106164,42435.0,42427.0,0.32914998]
[1646333530387,0.106164,42435.0,42427.0,0.14231623]
[1646333530585,0.106164,42435.0,42427.0,0.14931623]
[1646333530786,0.106164,42435.0,42427.0,0.3093541]
[1646333530987,0.106164,42435.0,42427.0,0.14931623]
[1646333531285,0.165126,42435.0,42427.0,0.14931623]
[1646333531953,0.165126,42435.0,42427.0,0.14231623]
[1646333532659,0.165126,42435.0,42427.0,0.14931623]
[1646333532957,0.165126,42435.0,42428.0,0.0001569]
[1646333533358,0.106162,42435.0,42428.0,0.0001569]
[1646333533557,0.106162,42435.0,42428.0,0.0004707]
[1646333533957,0.106162,42435.0,42428.0,0.0003138]
[1646333534158,0.106162,42435.0,42431.0,0.16340231]
[1646333534460,0.106162,42435.0,42427.0,0.14231623]
[1646333534658,0.106162,42435.0,42428.0,0.0061569]
[1646333535058,0.106162,42435.0,42428.0,0.0063138]
[1646333535258,0.106162,42435.0,42428.0,0.0064707]
[1646333535785,0.106162,42435.0,42428.0,0.006]
[1646333535984,0.106162,42435.0,42427.0,0.14231623]
[1646333536184,0.165126,42435.0,42431.0,0.21434196]
[1646333536384,0.165126,42435.0,42428.0,0.00015053]
[1646333536684,0.165126,42435.0,42428.0,0.00045159]
[1646333537086,0.117926,42435.0,42428.0,0.00030106]
[1646333537285,0.117926,42435.0,42434.0,0.09091375]
[1646333537484,0.058962,42435.0,42434.0,0.29641702]
[1646333537685,0.058959,42439.0,42434.0,0.29641702]
[1646333537686,0.117914,42439.0,42434.0,0.29641702]
[1646333537884,0.117914,42439.0,42434.0,0.09091375]
[1646333538684,0.117914,42439.0,42434.0,0.003]
[1646333539936,0.117914,42439.0,42428.0,0.00031833]
[1646333540139,0.117914,42439.0,42433.0,0.01524974]
[1646333540739,0.058962,42435.0,42433.0,0.01524974]
[1646333541335,0.058955,42439.0,42433.0,0.01524974]
[1646333542740,0.058955,42439.0,42436.0,0.19967816]
[1646333542988,0.058955,42439.0,42433.0,0.01524974]
[1646333543991,0.058955,42439.0,42432.0,0.20904163]
[1646333544888,0.058955,42439.0,42432.0,0.21504163]
[1646333545092,0.058955,42439.0,42434.0,0.08134457]
[1646333546291,0.058955,42439.0,42432.0,0.20904163]
[1646333547061,0.058951,42443.0,42433.0,0.3]
[1646333547260,0.005153,42442.0,42437.0,0.08719128]
[1646333547459,0.058951,42443.0,42437.0,0.08719128]
[1646333548062,0.058951,42443.0,42433.0,0.3]
[1646333548661,0.058951,42443.0,42435.0,0.18496395]
[1646333548861,0.058951,42443.0,42433.0,0.305]
[1646333549062,0.058951,42443.0,42435.0,0.10494708]
[1646333549463,0.117905,42443.0,42435.0,0.10494708]
[1646333549662,0.117905,42443.0,42436.0,0.3]
[1646333549863,0.005153,42442.0,42439.0,0.20779541]
[1646333550691,0.005153,42442.0,42439.0,0.004]
[1646333551290,0.005153,42442.0,42435.0,0.0217558]
[1646333551492,0.058951,42443.0,42434.0,0.3]
[1646333551690,0.058951,42443.0,42439.0,0.17133435]
[1646333551893,0.005153,42442.0,42439.0,0.17133435]
[1646333552892,0.005153,42442.0,42439.0,0.003]
[1646333553992,0.005153,42442.0,42430.0,0.12918]
[1646333554231,0.058956,42439.0,42430.0,0.12918]
[1646333554733,0.117916,42439.0,42430.0,0.13318]
[1646333554933,0.117916,42439.0,42430.0,0.1214]
[1646333555134,0.05896,42439.0,42431.0,0.3]